[Event "NED-ch 2018"]
[Site "Amsterdam"]
[Date "2018.07.07"]
[Round "5"]
[White "L'Ami, Erwin"]
[Black "Leenhouts, Koen"]
[Result "1-0"]
[ECO "B48"]
[WhiteElo "2636"]
[BlackElo "2483"]
[Annotator "ChessBase"]
[PlyCount "109"]
[EventDate "2018.07.02"]
[EventType "tourn"]
[EventCountry "NED"]
[SourceTitle "playchess.com"]
[Source "ChessBase"]
[SourceQuality "1"]
[TimeControl "40/5400+30:1800+30"]

1. e4 {[%emt 0:00:00]} c5 {[%emt 0:00:00]} 2. Nf3 {[%emt 0:00:03]} e6 {[%emt 0:00:00]} 3. d4 {[%emt 0:00:07]} cxd4 {[%emt 0:00:04]} 4. Nxd4 {[%emt 0:00:06]} Nc6 {[%emt 0:00:10]} 5. Nc3 {[%emt 0:00:20]} Qc7 {[%emt 0:00:13]} 6. Be3 {[%emt 0:00:10]} a6 {[%emt 0:00:09]} 7. Qf3 {[%emt 0:00:08]} Bd6 {[%emt 0:00:13]} 8. O-O-O {[%emt 0:00:59]} Be5 {[%emt 0:00:12]} 9. Nxc6 {[%emt 0:00:20]} bxc6 {[%emt 0:07:03]} 10. Bd4 {[%emt 0:00:20]} Nf6 {[%emt 0:07:02]} 11. Bxe5 {[%emt 0:01:41]} Qxe5 {[%emt 0:00:10]} 12. Be2 {[%emt 0:01:00]} O-O {[%emt 0:06:44]} 13. Qg3 {[%emt 0:12:07]} Qxg3 {[%emt 0:07:48]} 14. hxg3 {[%emt 0:00:20]} d5 {[%emt 0:00:30]} 15. Bd3 {[%emt 0:06:58]} h6 {[%emt 0:01:34]} 16. Rhe1 {[%emt 0:07:08]} a5 {[%emt 0:02:58]} 17. Na4 {[%emt 0:04:21]} Nd7 {[%emt 0:09:45]} 18. c4 {[%emt 0:08:08]} d4 {[%emt 0:09:07]} 19. e5 {[%emt 0:01:42]} c5 {[%emt 0:00:32]} 20. Be4 {[%emt 0:01:22]} Ra7 {[%emt 0:07:07]} 21. Bc6 {[%emt 0:05:10]} Nb8 {[%emt 0:02:24]} 22. Bb5 {[%emt 0:01:13]} Bd7 {[%emt 0:02:15]} 23. Re2 {[%emt 0:02:23]} Rc7 {[%emt 0:06:54]} 24. b3 {[%emt 0:02:37]} Bc6 {[%emt 0:03:48]} 25. f3 {[%emt 0:02:13]} Nd7 {[%emt 0:07:41]} 26. Nb2 {[%emt 0:01:25]} Bxb5 {[%emt 0:05:18]} 27. cxb5 {[%emt 0:00:19]} Nb6 {[%emt 0:00:03]} 28. a4 {[%emt 0:05:12]} f6 {[%emt 0:08:02]} 29. exf6 {[%emt 0:02:58]} Rxf6 {[%emt 0:00:27]} 30. g4 {[%emt 0:03:10]} Kh7 {[%emt 0:04:46]} 31. Rde1 {[%emt 0:03:09]} c4 {[%emt 0:00:23]} 32. bxc4 {[%emt 0:02:27]} Nxa4 {[%emt 0:00:04]} 33. Rc2 {[%emt 0:03:53]} Nc3 {[%emt 0:00:16]} 34. Kd2 {[%emt 0:01:42]} h5 {[%emt 0:01:16]} 35. Rh1 {[%emt 0:03:14]} g6 {[%emt 0:00:02]} 36. Rxc3 {[%emt 0:03:13]} dxc3+ {[%emt 0:00:02]} 37. Kxc3 {[%emt 0:00:10]} Kg8 {[%emt 0:00:39]} 38. gxh5 {[%emt 0:01:53]} Rf5 {[%emt 0:00:19]} 39. Kb3 {[%emt 0:00:29]} gxh5 {[%emt 0:01:00]} 40. Nd3 {[%emt 0:07:10]} Rd7 {[%emt 0:02:23]} 41. Kc3 {[%emt 0:32:56]} Rg5 {[%emt 0:04:57]} 42. b6 {[%emt 0:00:00]} Rxg2 {[%emt 0:11:35]} 43. Rb1 {[%emt 0:00:00]} Rgg7 {[%emt 0:03:03]} 44. c5 {[%emt 0:00:00]} h4 {[%emt 0:00:59]} 45. c6 {[%emt 0:00:00]} Rd8 {[%emt 0:00:24]} 46. b7 {[%emt 0:00:00]} Rb8 {[%emt 0:00:18]} 47. Kc4 {[%emt 0:00:00]} h3 {[%emt 0:01:56]} 48. Nc5 {[%emt 0:00:00]} a4 {[%emt 0:03:55]} 49. Rh1 {[%emt 0:00:00]} Rh7 {[%emt 0:00:36]} 50. Kb5 {[%emt 0:00:00]} a3 {[%emt 0:00:54]} 51. Kb6 {[%emt 0:00:00]} Rh4 {[%emt 0:04:35]} 52. c7 {[%emt 0:00:26]} Rb4+ {[%emt 0:00:07]} 53. Kc6 {[%emt 0:00:08]} R4xb7 {[%emt 0:00:13]} 54. Nxb7 {[%emt 0:00:09]} Ra8 {[%emt 0:00:09]} 55. Rxh3 {[%emt 0:00:49]} 1-0

[Event "NED-ch 2018"]
[Site "Amsterdam"]
[Date "2018.07.07"]
[Round "5"]
[White "Van den Doel, Erik"]
[Black "Tiviakov, Sergei"]
[Result "1/2-1/2"]
[ECO "E61"]
[WhiteElo "2593"]
[BlackElo "2583"]
[Annotator "ChessBase"]
[PlyCount "79"]
[EventDate "2018.07.02"]
[EventType "tourn"]
[EventCountry "NED"]
[SourceTitle "playchess.com"]
[Source "ChessBase"]
[SourceQuality "1"]
[TimeControl "40/5400+30:1800+30"]

1. d4 {[%emt 0:00:00]} Nf6 {[%emt 0:00:00]} 2. Bf4 {[%emt 0:00:00]} b6 {[%emt 0:02:14]} 3. e3 {[%emt 0:02:53]} Bb7 {[%emt 0:00:06]} 4. Nf3 {[%emt 0:00:04]} g6 {[%emt 0:01:17]} 5. h3 {[%emt 0:04:19]} Bg7 {[%emt 0:00:21]} 6. Be2 {[%emt 0:00:21]} d6 {[%emt 0:00:18]} 7. O-O {[%emt 0:00:25]} O-O {[%emt 0:00:06]} 8. c4 {[%emt 0:01:07]} Nbd7 {[%emt 0:01:17]} 9. Nc3 {[%emt 0:00:19]} Ne4 {[%emt 0:01:53]} 10. Nxe4 {[%emt 0:01:01]} Bxe4 {[%emt 0:00:03]} 11. Nd2 {[%emt 0:00:12]} Bb7 {[%emt 0:00:14]} 12. Bf3 {[%emt 0:00:12]} Bxf3 {[%emt 0:06:30]} 13. Nxf3 {[%emt 0:00:36]} c5 {[%emt 0:06:26]} 14. Qd3 {[%emt 0:10:51]} Qc7 {[%emt 0:00:43]} 15. Rac1 {[%emt 0:07:46]} a6 {[%emt 0:00:59]} 16. a4 {[%emt 0:03:27]} Qb7 {[%emt 0:08:01]} 17. Rfd1 {[%emt 0:13:00]} b5 {[%emt 0:29:00]} 18. cxb5 {[%emt 0:27:29]} cxd4 {[%emt 0:02:26]} 19. exd4 {[%emt 0:13:12]} axb5 {[%emt 0:00:13]} 20. axb5 {[%emt 0:00:45]} Ra5 {[%emt 0:03:42]} 21. Re1 {[%emt 0:00:38]} Bf6 {[%emt 0:05:03]} 22. Bg5 {[%emt 0:01:07]} Re8 {[%emt 0:00:25]} 23. h4 {[%emt 0:03:48]} Rxb5 {[%emt 0:01:17]} 24. Rc7 {[%emt 0:00:24]} Qxc7 {[%emt 0:00:07]} 25. Qxb5 {[%emt 0:00:03]} Rb8 {[%emt 0:00:11]} 26. Qe2 {[%emt 0:00:21]} e6 {[%emt 0:01:17]} 27. Qd2 {[%emt 0:01:27]} Qb6 {[%emt 0:05:37]} 28. Rc1 {[%emt 0:01:59]} Bg7 {[%emt 0:00:44]} 29. d5 {[%emt 0:00:37]} exd5 {[%emt 0:03:42]} 30. Qxd5 {[%emt 0:00:08]} Ne5 {[%emt 0:00:32]} 31. b3 {[%emt 0:04:21]} Ng4 {[%emt 0:01:56]} 32. Qd2 {[%emt 0:00:05]} h5 {[%emt 0:01:18]} 33. Bf4 {[%emt 0:00:04]} Re8 {[%emt 0:02:59]} 34. Bxd6 {[%emt 0:02:33]} Qxb3 {[%emt 0:00:17]} 35. Bf4 {[%emt 0:00:26]} Ra8 {[%emt 0:04:30]} 36. Qc2 {[%emt 0:00:08]} Qb4 {[%emt 0:01:34]} 37. Bg3 {[%emt 0:00:21]} Bf6 {[%emt 0:01:16]} 38. Rb1 {[%emt 0:00:39]} Qa4 {[%emt 0:00:45]} 39. Qxa4 {[%emt 0:00:36]} Rxa4 {[%emt 0:00:02]} 40. Bc7 {[%emt 0:00:17]} 1/2-1/2

[Event "NED-ch 2018"]
[Site "Amsterdam"]
[Date "2018.07.07"]
[Round "6"]
[White "Van Foreest, Jorden"]
[Black "L'Ami, Erwin"]
[Result "1-0"]
[ECO "C49"]
[WhiteElo "2641"]
[BlackElo "2636"]
[Annotator "ChessBase"]
[PlyCount "61"]
[EventDate "2018.07.02"]
[EventType "tourn"]
[EventCountry "NED"]
[SourceTitle "playchess.com"]
[Source "ChessBase"]
[SourceQuality "1"]
[TimeControl "40/5400+30:1800+30"]

1. e4 {[%emt 0:07:45]} e5 {[%emt 0:00:00]} 2. Nf3 {[%emt 0:00:04]} Nf6 {[%emt 0:00:00]} 3. Nc3 {[%emt 0:01:25]} Nc6 {[%emt 0:00:01]} 4. Bb5 {[%emt 0:00:06]} Bb4 {[%emt 0:00:26]} 5. O-O {[%emt 0:00:10]} O-O {[%emt 0:01:01]} 6. d3 {[%emt 0:00:05]} d6 {[%emt 0:00:20]} 7. Ne2 {[%emt 0:00:06]} Ne7 {[%emt 0:00:28]} 8. c3 {[%emt 0:00:07]} Bc5 {[%emt 0:01:06]} 9. d4 {[%emt 0:02:45]} Bb6 {[%emt 0:00:13]} 10. Ng3 {[%emt 0:00:15]} Ng6 {[%emt 0:00:43]} 11. Be3 {[%emt 0:00:30]} c6 {[%emt 0:05:15]} 12. Bd3 {[%emt 0:00:04]} Re8 {[%emt 0:00:17]} 13. Re1 {[%emt 0:01:01]} h6 {[%emt 0:05:09]} 14. h3 {[%emt 0:02:42]} Nh7 {[%emt 0:05:45]} 15. a4 {[%emt 0:15:52]} Ng5 {[%emt 0:06:01]} 16. Bc4 {[%emt 0:09:42]} Qf6 {[%emt 0:10:53]} 17. Nh5 {[%emt 0:02:40]} Qe7 {[%emt 0:06:09]} 18. a5 {[%emt 0:00:29]} Bc7 {[%emt 0:00:39]} 19. dxe5 {[%emt 0:07:44]} dxe5 {[%emt 0:03:40]} 20. b4 {[%emt 0:01:24]} Nxf3+ {[%emt 0:05:12]} 21. Qxf3 {[%emt 0:01:19]} Be6 {[%emt 0:00:25]} 22. Bxe6 {[%emt 0:07:54]} Qxe6 {[%emt 0:00:14]} 23. Ng3 {[%emt 0:02:06]} Ne7 {[%emt 0:05:25]} 24. Nf5 {[%emt 0:01:45]} a6 {[%emt 0:09:24]} 25. Bc5 {[%emt 0:02:32]} Nxf5 {[%emt 0:01:14]} 26. exf5 {[%emt 0:00:04]} Qf6 {[%emt 0:00:58]} 27. Qe4 {[%emt 0:04:12]} Rad8 {[%emt 0:04:58]} 28. g3 {[%emt 0:00:05]} Kh7 {[%emt 0:02:56]} 29. Re3 {[%emt 0:00:59]} Rd2 {[%emt 0:02:07]} 30. Rf3 {[%emt 0:00:47]} Red8 {[%emt 0:01:55]} 31. Be7 {[%emt 0:03:22]} 1-0

[Event "NED-ch 2018"]
[Site "Amsterdam"]
[Date "2018.07.07"]
[Round "6"]
[White "Tiviakov, Sergei"]
[Black "Van Wely, Loek"]
[Result "1-0"]
[ECO "B22"]
[WhiteElo "2580"]
[BlackElo "2674"]
[Annotator "ChessBase"]
[PlyCount "75"]
[EventDate "2018.07.02"]
[EventType "tourn"]
[EventCountry "NED"]
[SourceTitle "playchess.com"]
[Source "ChessBase"]
[SourceQuality "1"]
[TimeControl "40/5400+30:1800+30"]

1. e4 {[%emt 0:00:00]} c5 {[%emt 0:00:00]} 2. c3 {[%emt 0:00:00]} Nf6 {[%emt 0:00:03]} 3. e5 {[%emt 0:00:00]} Nd5 {[%emt 0:00:05]} 4. Nf3 {[%emt 0:00:00]} e6 {[%emt 0:00:08]} 5. Bc4 {[%emt 0:00:00]} d6 {[%emt 0:00:10]} 6. d4 {[%emt 0:00:18]} cxd4 {[%emt 0:00:37]} 7. cxd4 {[%emt 0:00:05]} Nb6 {[%emt 0:02:53]} 8. Bd3 {[%emt 0:00:09]} dxe5 {[%emt 0:00:14]} 9. dxe5 {[%emt 0:00:05]} Na6 {[%emt 0:00:34]} 10. O-O {[%emt 0:00:06]} Nc5 {[%emt 0:00:38]} 11. Be2 {[%emt 0:00:05]} Qxd1 {[%emt 0:03:00]} 12. Rxd1 {[%emt 0:00:14]} Nd5 {[%emt 0:00:50]} 13. Bc4 {[%emt 0:11:59]} Nb6 {[%emt 0:03:02]} 14. Bb5+ {[%emt 0:00:10]} Bd7 {[%emt 0:00:07]} 15. Nc3 {[%emt 0:00:05]} a6 {[%emt 0:01:51]} 16. Be2 {[%emt 0:01:24]} Nba4 {[%emt 0:09:29]} 17. Nxa4 {[%emt 0:03:54]} Bxa4 {[%emt 0:18:26]} 18. b3 {[%emt 0:00:24]} Bc6 {[%emt 0:00:39]} 19. Bb2 {[%emt 0:25:41]} Be7 {[%emt 0:06:52]} 20. Nd4 {[%emt 0:03:45]} Be4 {[%emt 0:02:41]} 21. f3 {[%emt 0:09:24]} Bg6 {[%emt 0:01:29]} 22. a4 {[%emt 0:07:37]} Rd8 {[%emt 0:03:54]} 23. b4 {[%emt 0:06:48]} Nd7 {[%emt 0:01:41]} 24. b5 {[%emt 0:03:17]} a5 {[%emt 0:01:02]} 25. Bc3 {[%emt 0:00:24]} Bb4 {[%emt 0:03:22]} 26. Bxb4 {[%emt 0:01:27]} axb4 {[%emt 0:00:15]} 27. a5 {[%emt 0:00:01]} b3 {[%emt 0:08:16]} 28. Nxb3 {[%emt 0:00:38]} Bc2 {[%emt 0:00:07]} 29. Rxd7 {[%emt 0:00:32]} Rxd7 {[%emt 0:01:44]} 30. Nc5 {[%emt 0:00:07]} Rd5 {[%emt 0:05:09]} 31. Nxb7 {[%emt 0:00:58]} Rxe5 {[%emt 0:10:54]} 32. Kf2 {[%emt 0:01:09]} Bb3 {[%emt 0:04:10]} 33. Rc1 {[%emt 0:02:53]} Ke7 {[%emt 0:03:33]} 34. a6 {[%emt 0:02:19]} Ra8 {[%emt 0:03:12]} 35. Rc7+ {[%emt 0:00:50]} Kf6 {[%emt 0:00:05]} 36. Nd6 {[%emt 0:01:07]} Rd5 {[%emt 0:05:16]} 37. Ne4+ {[%emt 0:00:15]} Kg6 {[%emt 0:00:19]} 38. b6 {[%emt 0:00:08]} 1-0

[Event "NED-ch 2018"]
[Site "Amsterdam"]
[Date "2018.07.07"]
[Round "6"]
[White "Sokolov, Ivan"]
[Black "Leenhouts, Koen"]
[Result "1-0"]
[ECO "D63"]
[WhiteElo "2565"]
[BlackElo "2483"]
[Annotator "ChessBase"]
[PlyCount "109"]
[EventDate "2018.07.02"]
[EventType "tourn"]
[EventCountry "NED"]
[SourceTitle "playchess.com"]
[Source "ChessBase"]
[SourceQuality "1"]
[TimeControl "40/5400+30:1800+30"]

1. d4 {[%emt 0:08:59]} d5 {[%emt 0:00:00]} 2. c4 {[%emt 0:00:35]} e6 {[%emt 0:00:00]} 3. Nc3 {[%emt 0:01:20]} Nf6 {[%emt 0:00:00]} 4. Bg5 {[%emt 0:01:33]} Be7 {[%emt 0:00:03]} 5. e3 {[%emt 0:01:46]} Nbd7 {[%emt 0:00:20]} 6. Nf3 {[%emt 0:09:49]} h6 {[%emt 0:00:48]} 7. Bh4 {[%emt 0:02:34]} O-O {[%emt 0:00:11]} 8. Rc1 {[%emt 0:03:30]} c5 {[%emt 0:02:03]} 9. dxc5 {[%emt 0:12:06]} dxc4 {[%emt 0:05:38]} 10. Bxc4 {[%emt 0:07:36]} Nxc5 {[%emt 0:00:14]} 11. Qc2 {[%emt 0:03:16]} a6 {[%emt 0:07:02]} 12. O-O {[%emt 0:03:36]} b5 {[%emt 0:02:12]} 13. Rfd1 {[%emt 0:00:02]} Qe8 {[%emt 0:08:47]} 14. Be2 {[%emt 0:10:58]} Bb7 {[%emt 0:05:23]} 15. b4 {[%emt 0:06:26]} Nce4 {[%emt 0:05:22]} 16. Nxe4 {[%emt 0:00:01]} Bxe4 {[%emt 0:00:35]} 17. Qb2 {[%emt 0:00:02]} Rc8 {[%emt 0:05:24]} 18. Rxc8 {[%emt 0:03:59]} Qxc8 {[%emt 0:01:18]} 19. Ne5 {[%emt 0:00:01]} Rd8 {[%emt 0:13:02]} 20. Rc1 {[%emt 0:00:05]} Qa8 {[%emt 0:03:19]} 21. f3 {[%emt 0:00:08]} Bb7 {[%emt 0:02:23]} 22. e4 {[%emt 0:02:39]} Qb8 {[%emt 0:12:01]} 23. Nd3 {[%emt 0:05:01]} a5 {[%emt 0:09:07]} 24. a3 {[%emt 0:00:18]} axb4 {[%emt 0:00:36]} 25. axb4 {[%emt 0:00:03]} Bc8 {[%emt 0:02:24]} 26. Bg3 {[%emt 0:04:06]} Qa7+ {[%emt 0:02:27]} 27. Bf2 {[%emt 0:00:04]} Qb8 {[%emt 0:00:31]} 28. Bc5 {[%emt 0:02:30]} Bd6 {[%emt 0:02:04]} 29. Bxd6 {[%emt 0:01:23]} Qxd6 {[%emt 0:00:02]} 30. Qe5 {[%emt 0:00:38]} Qb6+ {[%emt 0:03:51]} 31. Qc5 {[%emt 0:00:17]} Qa6 {[%emt 0:00:06]} 32. Ne5 {[%emt 0:02:51]} Bd7 {[%emt 0:05:42]} 33. Nxd7 {[%emt 0:01:29]} Nxd7 {[%emt 0:00:44]} 34. Qc7 {[%emt 0:00:10]} Qb6+ {[%emt 0:02:40]} 35. Qxb6 {[%emt 0:00:06]} Nxb6 {[%emt 0:00:01]} 36. Bxb5 {[%emt 0:00:05]} Rb8 {[%emt 0:00:51]} 37. Kf2 {[%emt 0:02:24]} Nc8 {[%emt 0:00:45]} 38. Ba6 {[%emt 0:00:36]} Nd6 {[%emt 0:00:29]} 39. Rc6 {[%emt 0:01:42]} Nb5 {[%emt 0:00:05]} 40. Ke3 {[%emt 0:04:17]} Kf8 {[%emt 0:00:45]} 41. Rc5 {[%emt 0:30:52]} Nd6 {[%emt 0:30:32]} 42. b5 {[%emt 0:00:09]} Ke7 {[%emt 0:00:00]} 43. Kd4 {[%emt 0:00:00]} Ne8 {[%emt 0:00:00]} 44. Kc3 {[%emt 0:00:00]} Kd6 {[%emt 0:00:00]} 45. Kb4 {[%emt 0:00:00]} Nc7 {[%emt 0:00:00]} 46. Rc6+ {[%emt 0:00:00]} Kd7 {[%emt 0:00:00]} 47. Kc5 {[%emt 0:00:00]} e5 {[%emt 0:00:00]} 48. Rd6+ {[%emt 0:00:00]} Ke7 {[%emt 0:00:00]} 49. Kc6 {[%emt 0:00:00]} Ne6 {[%emt 0:00:00]} 50. Rd7+ {[%emt 0:00:00]} Ke8 {[%emt 0:00:00]} 51. Rd5 {[%emt 0:00:00]} Rd8 {[%emt 0:00:33]} 52. Rxd8+ {[%emt 0:00:00]} Kxd8 {[%emt 0:00:02]} 53. b6 {[%emt 0:00:34]} Nf8 {[%emt 0:00:27]} 54. b7 {[%emt 0:00:13]} Nd7 {[%emt 0:00:06]} 55. Kd6 {[%emt 0:00:17]} 1-0

[Event "NED-ch 2018"]
[Site "Amsterdam"]
[Date "2018.07.07"]
[Round "6"]
[White "Ernst, Sipke"]
[Black "Van den Doel, Erik"]
[Result "1-0"]
[ECO "A14"]
[WhiteElo "2555"]
[BlackElo "2593"]
[Annotator "ChessBase"]
[PlyCount "148"]
[EventDate "2018.07.02"]
[EventType "tourn"]
[EventCountry "NED"]
[SourceTitle "playchess.com"]
[Source "ChessBase"]
[SourceQuality "1"]
[TimeControl "40/5400+30:1800+30"]

1. Nf3 {[%emt 1:30:30]} d5 {[%emt 0:00:00]} 2. c4 {[%emt 0:00:00]} e6 {[%emt 0:00:00]} 3. g3 {[%emt 0:00:00]} Nf6 {[%emt 0:00:00]} 4. Bg2 {[%emt 0:00:00]} Be7 {[%emt 0:00:00]} 5. b3 {[%emt 0:00:00]} O-O {[%emt 0:00:00]} 6. O-O {[%emt 0:00:00]} c5 {[%emt 0:00:03]} 7. e3 {[%emt 0:00:00]} Nc6 {[%emt 0:00:34]} 8. Bb2 {[%emt 0:00:00]} Qb6 {[%emt 0:01:02]} 9. Na3 {[%emt 0:00:00]} Rd8 {[%emt 0:13:35]} 10. Qe2 {[%emt 0:00:00]} Bd7 {[%emt 0:14:29]} 11. d3 {[%emt 0:00:00]} Qa5 {[%emt 0:09:39]} 12. Nd2 {[%emt 0:00:00]} Nb4 {[%emt 0:04:58]} 13. Nf3 {[%emt 0:00:00]} Nc6 {[%emt 0:02:33]} 14. Rfd1 {[%emt 0:00:00]} Rac8 {[%emt 0:03:33]} 15. h3 {[%emt 0:00:00]} Be8 {[%emt 0:06:01]} 16. cxd5 {[%emt 0:00:00]} exd5 {[%emt 0:05:47]} 17. Nc2 {[%emt 0:00:00]} Bd7 {[%emt 0:08:06]} 18. a3 {[%emt 0:00:00]} Qa6 {[%emt 0:03:36]} 19. Rab1 {[%emt 0:00:00]} b6 {[%emt 0:02:46]} 20. Ba1 {[%emt 0:00:00]} h6 {[%emt 0:01:13]} 21. g4 {[%emt 0:00:00]} Be6 {[%emt 0:04:20]} 22. Bf1 {[%emt 0:00:00]} Re8 {[%emt 0:01:48]} 23. d4 {[%emt 0:00:00]} Qb7 {[%emt 0:02:33]} 24. Bg2 {[%emt 0:00:00]} cxd4 {[%emt 0:07:54]} 25. Ncxd4 {[%emt 0:00:00]} Nxd4 {[%emt 0:00:04]} 26. Nxd4 {[%emt 0:00:00]} Bd7 {[%emt 0:01:39]} 27. Qd3 {[%emt 0:00:00]} Ne4 {[%emt 0:00:52]} 28. Ne2 {[%emt 0:00:00]} Bc6 {[%emt 0:01:21]} 29. b4 {[%emt 0:02:13]} Bh4 {[%emt 0:00:38]} 30. Rf1 {[%emt 0:00:06]} Ba4 {[%emt 0:01:27]} 31. Nd4 {[%emt 0:00:04]} a6 {[%emt 0:01:30]} 32. b5 {[%emt 0:03:09]} axb5 {[%emt 0:00:24]} 33. Nf5 {[%emt 0:04:15]} Bc2 {[%emt 0:00:24]} 34. Qxb5 {[%emt 0:00:15]} Bxf2+ {[%emt 0:02:43]} 35. Rxf2 {[%emt 0:00:27]} Nxf2 {[%emt 0:00:08]} 36. Qb2 {[%emt 0:02:41]} f6 {[%emt 0:00:38]} 37. Kxf2 {[%emt 0:00:54]} Bxb1 {[%emt 0:00:42]} 38. Qxb1 {[%emt 0:00:07]} Qc6 {[%emt 0:00:30]} 39. Bd4 {[%emt 0:02:12]} Qc2+ {[%emt 0:01:06]} 40. Qxc2 {[%emt 0:00:06]} Rxc2+ {[%emt 0:00:00]} 41. Kg3 {[%emt 0:31:12]} Rxg2+ {[%emt 0:09:28]} 42. Kxg2 {[%emt 0:00:00]} Ra8 {[%emt 0:00:19]} 43. Ne7+ {[%emt 0:00:00]} Kf7 {[%emt 0:01:00]} 44. Nxd5 {[%emt 0:00:00]} Rxa3 {[%emt 0:00:03]} 45. Bxb6 {[%emt 0:00:00]} Rb3 {[%emt 0:02:46]} 46. Bd4 {[%emt 0:00:00]} Rb5 {[%emt 0:00:09]} 47. Nf4 {[%emt 0:00:00]} Ra5 {[%emt 0:02:40]} 48. Nh5 {[%emt 0:00:00]} Rb5 {[%emt 0:01:26]} 49. Kf3 {[%emt 0:00:00]} Ra5 {[%emt 0:00:15]} 50. Ng3 {[%emt 0:00:00]} Ra2 {[%emt 0:00:24]} 51. Ne4 {[%emt 0:00:00]} Kg6 {[%emt 0:00:43]} 52. h4 {[%emt 0:00:00]} Rc2 {[%emt 0:01:14]} 53. Kf4 {[%emt 0:00:00]} Rc1 {[%emt 0:08:02]} 54. Ng3 {[%emt 0:00:00]} Rd1 {[%emt 0:00:28]} 55. Kf3 {[%emt 0:00:00]} Rb1 {[%emt 0:00:26]} 56. Ne2 {[%emt 0:00:00]} Rf1+ {[%emt 0:02:02]} 57. Kg2 {[%emt 0:00:00]} Rb1 {[%emt 0:00:27]} 58. Nf4+ {[%emt 0:00:00]} Kf7 {[%emt 0:00:04]} 59. h5 {[%emt 0:00:00]} Rb5 {[%emt 0:02:27]} 60. Kf3 {[%emt 0:00:00]} Ra5 {[%emt 0:00:12]} 61. Ng6 {[%emt 0:00:00]} Rb5 {[%emt 0:00:40]} 62. Nh4 {[%emt 0:00:00]} Ra5 {[%emt 0:00:04]} 63. Nf5 {[%emt 0:00:00]} Ra3 {[%emt 0:01:25]} 64. Kf4 {[%emt 0:00:00]} Ra2 {[%emt 0:03:26]} 65. e4 {[%emt 0:00:00]} Re2 {[%emt 0:00:03]} 66. Kf3 {[%emt 0:00:00]} Re1 {[%emt 0:00:02]} 67. Kf2 {[%emt 0:00:00]} Rh1 {[%emt 0:02:04]} 68. e5 {[%emt 0:00:00]} fxe5 {[%emt 0:00:03]} 69. Bxe5 {[%emt 0:00:00]} g6 {[%emt 0:00:27]} 70. Nd6+ {[%emt 0:00:00]} Ke6 {[%emt 0:01:57]} 71. hxg6 {[%emt 0:00:00]} Rb1 {[%emt 0:00:52]} 72. Nf7 {[%emt 0:00:00]} Rb6 {[%emt 0:00:34]} 73. Bd4 {[%emt 0:00:00]} Ra6 {[%emt 0:01:10]} 74. Nxh6 {[%emt 0:00:34]} Kd5 {[%emt 0:00:19]} 1-0